bitfinex/quotes_BTCUSD_20251120
["timestamp","ask_amount","ask_price","bid_price","bid_amount"]
[1763652347450,0.22019494,90829.0,90822.0,0.01101054]
[1763652347451,0.01101042,90823.0,90808.0,0.01652028]
[1763652347653,0.22021745,90820.0,90814.0,0.01101151]
[1763652347836,0.00376,90822.0,90817.0,0.01101115]
[1763652348036,0.01101139,90815.0,90804.0,0.01101273]
[1763652348239,0.22024607,90808.0,90803.0,0.01101285]
[1763652348441,0.22026289,90801.0,90792.0,0.01101418]
[1763652348647,0.01548,90803.0,90801.0,0.2202599]
[1763652348891,0.01548,90803.0,90793.0,0.01652028]
[1763652348892,0.01101503,90785.0,90761.0,0.01101794]
[1763652349110,0.01101503,90785.0,90746.0,0.0593264]
[1763652349111,0.22034761,90766.0,90750.0,0.01101928]
[1763652349320,0.22034761,90766.0,90740.0,0.71466018]
[1763652349321,0.01186,90765.0,90748.0,0.01101952]
[1763652349528,0.05136,90765.0,90748.0,0.01101952]
[1763652349739,0.05136,90765.0,90741.0,0.01652028]
[1763652349945,0.05136,90765.0,90750.0,0.01101928]
[1763652350155,0.05136,90765.0,90757.0,0.01101843]
[1763652350357,0.05136,90765.0,90756.0,0.01101855]
[1763652350557,0.05136,90765.0,90751.0,0.01101916]
[1763652350758,0.05136,90765.0,90759.0,0.01101819]
[1763652350985,0.02734,90765.0,90764.0,0.2224104]
[1763652351188,0.01286,90765.0,90764.0,0.00205872]
[1763652351388,0.01186,90765.0,90764.0,0.00205872]
[1763652351685,0.00376,90770.0,90769.0,0.22033954]
[1763652352104,0.001,90765.0,90764.0,0.23342686]
[1763652352459,0.00476,90765.0,90764.0,0.23342686]
[1763652352842,0.00376,90765.0,90764.0,0.23342686]
[1763652353688,0.00376,90765.0,90764.0,0.55642686]
[1763652353897,0.00376,90765.0,90764.0,0.65999682]
[1763652354133,0.001,90770.0,90769.0,0.22033954]
[1763652354546,0.00376,90778.0,90768.0,0.22034187]
[1763652354780,0.00376,90778.0,90777.0,0.22032012]
[1763652357127,0.00376,90778.0,90777.0,0.22073938]
[1763652357280,0.00376,90778.0,90777.0,0.00041926]
[1763652357840,0.00376,90778.0,90777.0,0.10271478]
[1763652357986,0.00376,90778.0,90777.0,0.00041926]
[1763652360671,0.01924,90778.0,90777.0,0.00041926]
[1763652361086,0.00376,90778.0,90777.0,0.00041926]
[1763652361313,0.01186,90803.0,90790.0,0.01101442]
[1763652361522,0.02402,90823.0,90808.0,0.01101224]
[1763652361706,0.00376,90815.0,90813.0,0.01101163]
[1763652361905,0.22023687,90812.0,90807.0,0.22024687]
[1763652362109,0.00376,90815.0,90811.0,0.2312489]
[1763652362328,0.76332245,90843.0,90811.0,0.2312489]
[1763652362329,0.02369,90833.0,90821.0,0.01101066]
[1763652362543,0.01100812,90842.0,90818.0,0.01101103]
[1763652362544,0.01100885,90836.0,90818.0,0.01101103]
[1763652362749,0.00376,90825.0,90823.0,0.23121731]
[1763652362984,0.00376,90825.0,90824.0,0.01652028]
[1763652363208,0.00376,90838.0,90825.0,0.54320368]
[1763652363429,0.01143,90847.0,90825.0,0.54320368]
[1763652363649,0.00376,90844.0,90825.0,0.54320368]
[1763652364127,0.22016246,90843.0,90825.0,0.54320368]
[1763652364341,0.22016533,90841.0,90825.0,0.54320368]
[1763652364546,0.22016668,90841.0,90825.0,0.54320368]
[1763652364747,0.01143,90837.0,90825.0,0.54320368]
[1763652364954,0.01143,90837.0,90825.0,0.323]
[1763652365161,0.01143,90847.0,90825.0,0.54320368]
[1763652365401,0.22013761,90853.0,90825.0,0.54320368]
[1763652365641,0.01100812,90842.0,90825.0,0.54320368]
[1763652365840,0.01143,90835.0,90825.0,0.54320368]
[1763652366070,0.01143,90835.0,90818.0,0.00041926]
[1763652366071,0.04008622,90826.0,90818.0,0.00041926]
[1763652366296,0.01616,90819.0,90818.0,0.00041926]
[1763652366516,0.00023622,90826.0,90823.0,0.01101042]
[1763652366732,0.00023622,90826.0,90825.0,0.22020368]
[1763652366955,0.00023622,90826.0,90824.0,0.02536697]
[1763652367173,0.00023622,90826.0,90823.0,0.01101042]
[1763652367397,0.00023622,90826.0,90823.0,0.23121813]
[1763652367615,0.00023622,90826.0,90824.0,0.22020519]
[1763652367823,0.00023622,90826.0,90823.0,0.23121646]
[1763652367824,0.00023622,90826.0,90825.0,0.22020368]
[1763652367980,0.00023622,90826.0,90818.0,0.00041926]
[1763652368326,0.22020464,90825.0,90819.0,0.22021746]
[1763652368550,0.00023622,90826.0,90824.0,0.22020538]
[1763652368747,0.00023622,90826.0,90825.0,0.01652028]
[1763652368947,0.00023622,90826.0,90825.0,0.33952028]
[1763652370526,0.00023622,90826.0,90825.0,0.01652028]
[1763652372617,0.00023622,90826.0,90824.0,0.22020371]
[1763652372788,0.00023622,90826.0,90825.0,0.04724332]
[1763652373001,0.22020368,90825.0,90818.0,0.00041926]
[1763652373202,0.01143,90824.0,90819.0,0.01101091]
[1763652373408,0.01143,90824.0,90822.0,0.22021096]
[1763652373707,0.01143,90824.0,90822.0,0.2202104]
[1763652373920,0.01143,90824.0,90818.0,0.00041926]
[1763652374109,0.01143,90824.0,90819.0,0.01101091]
[1763652374110,0.01616,90822.0,90819.0,0.01101091]
[1763652374518,0.23163793,90824.0,90818.0,0.00041926]
[1763652374519,0.23637656,90820.0,90818.0,0.00041926]
[1763652374721,0.23637656,90820.0,90777.0,0.01652028]
[1763652374722,0.33916,90819.0,90796.0,0.0110137]
[1763652374919,0.323,90817.0,90801.0,0.01101309]
[1763652375131,0.03985,90819.0,90802.0,0.01101297]
[1763652375132,0.22024766,90807.0,90802.0,0.01101297]
[1763652375321,0.02369,90834.0,90818.0,0.01101103]
[1763652375541,0.00376,90823.0,90822.0,0.22020961]
[1763652375748,0.01101079,90820.0,90793.0,0.01101406]
[1763652375907,0.01143,90798.0,90777.0,0.05580652]
[1763652376274,0.01992,90797.0,90782.0,0.01101539]
[1763652376458,0.04361,90797.0,90786.0,0.22029724]
[1763652376608,0.04361,90797.0,90789.0,0.01101455]
[1763652376814,0.04361,90797.0,90788.0,0.01101467]
[1763652377031,0.04361,90797.0,90789.0,0.01101455]
[1763652377233,0.04361,90797.0,90790.0,0.01101442]
[1763652377435,0.04361,90797.0,90791.0,0.0110143]
[1763652378092,0.26388159,90797.0,90770.0,0.71426018]
[1763652378293,0.26388159,90797.0,90765.0,0.01101746]
[1763652378294,0.32258941,90797.0,90765.0,0.01101746]
[1763652378494,0.26388159,90797.0,90784.0,0.01101515]
[1763652378627,0.26388159,90797.0,90782.0,0.01101539]
[1763652378834,0.26388159,90797.0,90781.0,0.01101552]
[1763652379029,0.26388159,90797.0,90762.0,0.01101782]
[1763652379209,0.26388159,90797.0,90778.0,0.22031709]
[1763652379410,0.04561,90797.0,90786.0,0.01101491]
[1763652379650,0.04561,90797.0,90784.0,0.22030122]
[1763652379651,0.04561,90797.0,90785.0,0.01101503]
[1763652379854,0.04561,90797.0,90773.0,0.02753677]
[1763652380058,0.04561,90797.0,90782.0,0.01101539]
[1763652380211,0.26588159,90797.0,90789.0,0.01101455]
[1763652380412,0.002,90797.0,90792.0,0.01101418]
[1763652380621,0.00576,90797.0,90795.0,0.22027537]
[1763652380826,0.002,90797.0,90796.0,0.02744425]
[1763652381344,0.01816,90797.0,90796.0,0.00041856]
[1763652381481,0.04085,90797.0,90796.0,0.00041856]
[1763652381684,0.03985,90797.0,90796.0,0.00041856]
[1763652381885,0.04085,90797.0,90796.0,0.00041856]
[1763652382089,0.04185,90797.0,90796.0,0.00041856]
[1763652382404,0.01616,90797.0,90796.0,0.00041856]
[1763652382990,0.02369,90807.0,90797.0,0.01101357]
[1763652383330,0.22027159,90797.0,90796.0,0.02248848]
[1763652383531,0.22027159,90797.0,90796.0,0.00041856]
[1763652383939,0.00376,90805.0,90798.0,0.01101345]
[1763652384084,0.00376,90805.0,90796.0,0.01143226]
[1763652384318,0.22027023,90798.0,90796.0,0.00041856]
[1763652384521,0.00376,90805.0,90799.0,0.01101333]
[1763652384775,0.00376,90805.0,90796.0,0.23170543]
[1763652384776,0.22026476,90800.0,90796.0,0.23170543]
[1763652384992,0.00376,90805.0,90801.0,0.01101309]
[1763652385280,0.001,90805.0,90804.0,0.22025461]
[1763652385508,0.001,90805.0,90803.0,0.22025674]
[1763652385509,0.001,90805.0,90803.0,0.22025592]
[1763652385708,0.001,90805.0,90803.0,0.22025703]
[1763652385885,0.01519,90811.0,90808.0,0.01101224]
[1763652386130,0.22024006,90810.0,90807.0,0.01101236]
[1763652386302,0.03888,90811.0,90808.0,0.01101224]
[1763652386460,0.01519,90811.0,90810.0,0.22024006]
[1763652386667,0.01519,90811.0,90808.0,0.23125671]
[1763652386860,0.01519,90811.0,90809.0,0.2202414]
[1763652387263,0.01519,90811.0,90809.0,0.22024144]
[1763652387476,0.23542868,90811.0,90808.0,0.01101224]
[1763652387677,0.01519,90811.0,90809.0,0.22024248]
[1763652387893,0.01519,90811.0,90807.0,0.23125471]
[1763652388093,0.01519,90811.0,90808.0,0.01101224]
[1763652388416,0.01519,90811.0,90809.0,0.2202419]
[1763652388649,0.01101224,90808.0,90797.0,0.23128516]
[1763652388855,0.01616,90797.0,90794.0,0.01101394]
[1763652389037,0.01616,90797.0,90794.0,0.23129215]
[1763652389230,0.00376,90799.0,90797.0,0.22027159]
[1763652390272,0.01143,90811.0,90809.0,0.22024248]
[1763652390614,0.00376,90810.0,90807.0,0.23125938]
[1763652390785,0.00376,90810.0,90808.0,0.22024344]
[1763652391088,0.22026933,90798.0,90796.0,0.00041856]
[1763652391291,0.22025299,90805.0,90803.0,0.01101285]
[1763652391493,0.22024976,90806.0,90802.0,0.01101297]
[1763652391706,0.03414212,90809.0,90797.0,0.02710022]
[1763652391924,0.23605189,90802.0,90796.0,0.00041856]
[1763652392128,0.22027159,90797.0,90796.0,0.00041856]
[1763652392308,0.01579,90802.0,90801.0,0.22026189]
[1763652392507,0.00376,90802.0,90800.0,0.2202635]
[1763652392684,0.00376,90802.0,90801.0,0.22026189]
[1763652393053,0.00376,90802.0,90796.0,0.01143226]
[1763652393253,0.00376,90802.0,90800.0,0.22026393]
[1763652393495,0.22402176,90802.0,90799.0,0.01101333]
[1763652393733,0.01587,90800.0,90796.0,0.00041856]
[1763652394255,0.03904,90800.0,90797.0,0.01101357]
[1763652394485,0.01587,90797.0,90796.0,0.00041856]
[1763652394894,0.23614159,90797.0,90796.0,0.00041856]
[1763652395120,0.25931159,90797.0,90796.0,0.00041856]
[1763652395348,0.00376,90802.0,90801.0,0.22026189]
[1763652395744,0.00376,90802.0,90797.0,0.23128442]
[1763652395745,0.22026189,90801.0,90797.0,0.23128442]
[1763652395923,0.22027159,90797.0,90796.0,0.00041856]
[1763652396129,0.01587,90798.0,90797.0,0.22027159]
[1763652396352,0.22027159,90797.0,90796.0,0.00041856]
[1763652396689,0.01587,90797.0,90796.0,0.00041856]
[1763652396966,0.03904,90797.0,90796.0,0.00041856]
[1763652397163,0.01587,90797.0,90796.0,0.22069258]
[1763652397393,0.00376,90802.0,90801.0,0.22026189]
[1763652398197,0.01963,90802.0,90801.0,0.22026189]
[1763652398538,0.01963,90802.0,90796.0,0.00041856]
[1763652398539,0.22026916,90798.0,90796.0,0.00041856]
[1763652398737,0.22026689,90799.0,90796.0,0.00041856]
[1763652398981,0.22026696,90799.0,90796.0,0.00041856]
[1763652399427,0.23614159,90797.0,90796.0,0.00041856]
[1763652399809,0.03904,90797.0,90796.0,0.00041856]
[1763652400044,0.01587,90797.0,90796.0,0.22069258]
[1763652400275,0.03904,90797.0,90796.0,0.00041856]
[1763652400506,0.25931159,90797.0,90796.0,0.00041856]
[1763652401155,0.03904,90797.0,90796.0,0.22069258]
[1763652401367,0.01587,90797.0,90796.0,0.22069258]
[1763652401548,0.01587,90797.0,90796.0,0.00041856]
[1763652401549,0.25931159,90797.0,90796.0,0.00041856]
[1763652402282,0.01587,90797.0,90796.0,0.00041856]
[1763652402462,0.01587,90797.0,90796.0,0.22069258]
[1763652402686,0.00376,90802.0,90801.0,0.22026189]
[1763652402923,0.2316679,90811.0,90808.0,0.01101224]
[1763652403129,0.2316679,90811.0,90802.0,0.01101297]
[1763652403130,0.22024248,90809.0,90802.0,0.01101297]
[1763652403362,0.02536449,90808.0,90806.0,0.01101248]
[1763652403583,0.22024776,90807.0,90779.0,0.330471]
[1763652403830,0.22024776,90807.0,90775.0,0.323]
[1763652403831,0.0440515,90806.0,90775.0,0.323]
[1763652404034,0.0440515,90806.0,90777.0,0.011016]
[1763652404035,0.22029343,90788.0,90777.0,0.011016]
[1763652404250,0.00376,90787.0,90781.0,0.01101552]
[1763652404461,0.00376,90787.0,90785.0,0.22029879]
[1763652404684,0.0346,90811.0,90797.0,0.01101357]
[1763652404894,0.22027263,90797.0,90786.0,0.01652028]
[1763652405118,0.22027532,90796.0,90789.0,0.22029012]
[1763652405359,0.01587,90790.0,90788.0,0.22029184]
[1763652405566,0.00376,90795.0,90792.0,0.01101418]
[1763652405765,0.00376,90795.0,90793.0,0.2202808]
[1763652405969,0.00376,90795.0,90792.0,0.23129666]
[1763652406194,0.00376,90795.0,90790.0,0.01652028]
[1763652406411,0.0004204,90807.0,90806.0,0.22024976]
[1763652406600,0.0041804,90807.0,90804.0,0.01101273]
[1763652406805,0.22025058,90806.0,90803.0,0.01101285]
[1763652407020,0.22442892,90807.0,90803.0,0.01101285]
[1763652407240,0.0041804,90807.0,90805.0,0.22025026]
[1763652407614,0.0041804,90807.0,90805.0,0.22025218]
[1763652407864,0.0041804,90807.0,90805.0,0.2202502]
[1763652408062,0.0041804,90807.0,90804.0,0.02753301]
[1763652408262,0.0041804,90807.0,90804.0,0.01652028]
[1763652408468,0.0041804,90807.0,90804.0,0.24778511]
[1763652408592,0.0041804,90807.0,90805.0,0.22025116]
[1763652409630,0.22442846,90807.0,90804.0,0.02753301]
[1763652409838,0.0041804,90807.0,90804.0,0.02753301]
[1763652410035,0.0041804,90807.0,90800.0,0.01101321]
[1763652410241,0.0041804,90807.0,90805.0,0.22025218]
[1763652410640,0.220253,90805.0,90801.0,0.10423922]
[1763652410903,0.220253,90805.0,90792.0,0.01101418]
[1763652410904,0.01587,90802.0,90783.0,0.01101527]
[1763652411160,0.01587,90802.0,90798.0,0.01101345]
[1763652411377,0.01587,90802.0,90799.0,0.23127876]
[1763652411546,0.01587,90802.0,90799.0,0.23127924]
[1763652411747,0.01587,90802.0,90799.0,0.01101333]
[1763652411952,0.01587,90800.0,90792.0,0.01101418]
[1763652412125,0.02317,90802.0,90789.0,0.01652028]
[1763652412306,0.0041804,90807.0,90794.0,0.01101394]
[1763652412307,0.02317,90801.0,90794.0,0.01101394]
[1763652412517,0.02317,90801.0,90789.0,0.02753483]
[1763652412518,0.01101321,90800.0,90789.0,0.01652028]
[1763652412738,0.02317,90801.0,90797.0,0.01101357]
[1763652413142,0.0041804,90807.0,90802.0,0.22025911]
[1763652413349,0.0041804,90807.0,90805.0,0.2202517]
[1763652413841,0.03904,90806.0,90803.0,0.01101285]
[1763652414076,0.02688321,90800.0,90786.0,0.07900665]
[1763652414303,0.01587,90800.0,90798.0,0.22026785]
[1763652415249,0.01587,90799.0,90798.0,0.22026785]
[1763652415467,0.01587,90799.0,90798.0,0.22026916]
[1763652415666,0.03904,90799.0,90788.0,0.01101467]
[1763652415919,0.23613951,90798.0,90795.0,0.2312902]
[1763652416141,0.22026364,90801.0,90798.0,0.01101345]
[1763652416577,0.01519276,90807.0,90798.0,0.23128167]
[1763652416578,0.01587,90799.0,90798.0,0.23128167]
[1763652417007,0.0273504,90807.0,90804.0,0.01101273]
[1763652417249,0.2202525,90805.0,90803.0,0.01101285]
[1763652417447,0.22442872,90807.0,90804.0,0.01101273]
[1763652417656,0.22025218,90805.0,90801.0,0.23127444]
[1763652417866,0.23612946,90802.0,90798.0,0.23128106]
[1763652418039,0.01587,90802.0,90801.0,0.22026189]
[1763652418625,0.0041804,90807.0,90806.0,0.22024976]
[1763652418827,0.0041804,90807.0,90800.0,0.01101321]
[1763652419030,0.0041804,90807.0,90805.0,0.22025196]
[1763652419210,0.22442781,90807.0,90804.0,0.23126731]
[1763652419420,0.23612278,90805.0,90803.0,0.01101285]
[1763652419629,0.01587,90804.0,90803.0,0.01101285]
[1763652419813,0.03904,90804.0,90796.0,0.0110137]
[1763652420036,0.22026253,90801.0,90797.0,0.01101357]
[1763652420342,0.01587,90797.0,90781.0,0.01101552]
[1763652420538,0.0110126,90805.0,90780.0,0.56880628]
[1763652420539,0.01587,90796.0,90795.0,0.01101382]
[1763652420744,0.01587,90796.0,90787.0,0.07900665]
[1763652420745,0.01587,90792.0,90787.0,0.07900665]
[1763652420951,0.01101612,90776.0,90770.0,0.07900665]
[1763652421098,0.01587,90767.0,90764.0,0.0130763]
[1763652421305,0.01587,90767.0,90765.0,0.22034878]
[1763652421524,0.01587,90767.0,90764.0,0.0130763]
[1763652421744,0.01587,90767.0,90764.0,0.00205872]
[1763652421745,0.23621925,90765.0,90764.0,0.00205872]
[1763652421951,0.33049832,90765.0,90764.0,0.00205872]
[1763652422178,0.25980939,90765.0,90764.0,0.00205872]
[1763652423365,0.25980939,90765.0,90740.0,0.0004]
[1763652423366,0.22039053,90748.0,90740.0,0.0004]
[1763652423564,0.24901753,90741.0,90740.0,0.0004]
[1763652423928,0.27189753,90741.0,90740.0,0.0004]
[1763652424333,0.05149,90741.0,90740.0,0.0004]
[1763652426210,0.27189753,90741.0,90740.0,0.0004]
[1763652426617,0.05149,90741.0,90740.0,0.0004]
[1763652427009,0.27189753,90741.0,90740.0,0.0004]
[1763652427215,0.64700002,90741.0,90740.0,0.0004]
[1763652427414,0.27189753,90741.0,90740.0,0.0004]
[1763652427639,0.05149,90741.0,90740.0,0.0004]
[1763652427839,0.05525,90741.0,90740.0,0.0004]
[1763652428407,0.05625,90741.0,90740.0,0.0004]
[1763652428628,0.05725,90741.0,90740.0,0.0004]
[1763652428831,0.1027398,90741.0,90740.0,0.0004]
[1763652429061,0.1017398,90741.0,90740.0,0.00070961]
[1763652429257,0.01102244,90724.0,90720.0,0.0004]
[1763652429507,0.02861,90721.0,90720.0,0.01142292]
[1763652429668,0.01217,90721.0,90720.0,0.06106677]
[1763652429904,0.01217,90721.0,90720.0,0.01142292]
[1763652430366,0.05190988,90721.0,90720.0,0.0004]
[1763652430786,0.22048042,90711.0,90710.0,0.0004]
[1763652431025,0.25285042,90711.0,90710.0,0.0004]
[1763652431161,0.05525,90711.0,90710.0,0.0004]
[1763652431652,0.02861,90711.0,90710.0,0.0004]
[1763652431826,0.03237,90711.0,90710.0,0.0004]
[1763652432167,0.05525,90711.0,90710.0,0.0004]
[1763652432379,0.13022429,90711.0,90710.0,0.0004]
[1763652432689,0.13122429,90711.0,90710.0,0.0004]
[1763652432906,0.22052904,90691.0,90690.0,0.0004]
[1763652433084,0.24072904,90691.0,90690.0,0.0004]
[1763652433394,0.26360904,90691.0,90690.0,0.0004]
[1763652434028,0.26402866,90691.0,90690.0,0.0004]
[1763652434435,0.26402866,90691.0,90670.0,0.0004]
[1763652434436,0.22057769,90671.0,90670.0,0.0004]
[1763652434646,0.23650769,90671.0,90670.0,0.0004]
[1763652434843,0.27582769,90671.0,90670.0,0.0004]
[1763652435074,0.27582769,90671.0,90670.0,0.00247157]
[1763652435684,0.05525,90671.0,90670.0,0.00247157]
[1763652436394,0.03237,90671.0,90670.0,0.00247157]
[1763652436838,0.27582769,90671.0,90670.0,0.00247157]
[1763652437039,0.27582769,90671.0,90611.0,0.83108241]
[1763652437040,0.89180628,90670.0,90651.0,0.01103131]
[1763652437305,0.10874743,90671.0,90652.0,0.01103119]
[1763652437306,0.00376,90669.0,90652.0,0.01103119]
[1763652437434,0.01217,90671.0,90661.0,0.0110301]
[1763652437645,0.01217,90671.0,90668.0,0.01102924]
[1763652437825,0.23158476,90680.0,90671.0,0.01102888]
[1763652438029,0.00376,90679.0,90672.0,0.01102876]
[1763652438246,0.00376,90679.0,90676.0,0.01102827]
[1763652438464,0.00376,90679.0,90671.0,0.23160602]
[1763652438465,0.00376,90679.0,90671.0,0.01102888]
[1763652438683,0.00376,90679.0,90677.0,0.22056074]
[1763652440156,0.00376,90679.0,90676.0,0.23159246]
[1763652440157,0.00376,90679.0,90678.0,0.22056066]
[1763652440780,0.00376,90679.0,90672.0,0.01102876]
[1763652441003,0.00376,90679.0,90669.0,0.01102912]
[1763652441247,0.22056718,90676.0,90669.0,0.2316102]
[1763652441464,0.22056718,90676.0,90667.0,0.23161644]
[1763652441465,0.01102827,90676.0,90666.0,0.01652028]
[1763652441683,0.011029,90670.0,90657.0,0.01103058]
[1763652441906,0.00376,90679.0,90650.0,0.58532656]
[1763652441907,0.01217,90651.0,90650.0,0.01652028]
[1763652442121,0.22063428,90648.0,90635.0,0.01103326]
[1763652442343,0.01593,90651.0,90649.0,0.22062992]
[1763652442520,0.01593,90651.0,90649.0,0.22062943]
[1763652442722,0.01593,90651.0,90647.0,0.2316661]
[1763652442934,0.23655723,90651.0,90645.0,0.01103204]
[1763652443129,0.23697659,90651.0,90650.0,0.00059224]
[1763652443743,0.03278936,90651.0,90650.0,0.00059224]
[1763652443945,0.01634936,90651.0,90650.0,0.00059224]
[1763652444359,0.03278936,90651.0,90650.0,0.00059224]
[1763652444964,0.05566936,90651.0,90650.0,0.00059224]
[1763652445209,0.15389591,90651.0,90650.0,0.00059224]
[1763652445335,0.22071137,90617.0,90612.0,0.01103606]
[1763652445542,0.00376,90617.0,90610.0,0.22072618]
[1763652445794,0.00376,90617.0,90609.0,0.01103643]
[1763652445969,0.00376,90617.0,90606.0,0.23725377]
[1763652446324,0.00376,90617.0,90615.0,0.22071368]
[1763652446491,0.0041791,90617.0,90615.0,0.22071368]
[1763652446708,0.0041791,90617.0,90614.0,0.23175131]
[1763652446903,0.22071253,90616.0,90611.0,0.01103618]
[1763652447061,0.0041791,90617.0,90615.0,0.22071186]
[1763652447263,0.0041791,90617.0,90615.0,0.22071289]
[1763652447460,0.0041791,90617.0,90614.0,0.01103582]
[1763652447686,0.01644,90615.0,90610.0,0.23176033]
[1763652447847,0.01644,90615.0,90612.0,0.01103606]
[1763652448054,0.0041791,90617.0,90614.0,0.01103582]
[1763652448455,0.0041791,90617.0,90615.0,0.22071308]
[1763652449278,0.0041791,90617.0,90612.0,0.23174994]
[1763652449479,0.03956455,90617.0,90610.0,0.0110363]
[1763652449829,0.22072618,90610.0,90602.0,0.01103728]
[1763652449962,0.01168,90609.0,90604.0,0.01103704]
[1763652450164,0.01168,90609.0,90606.0,0.01103679]
[1763652450366,0.01168,90609.0,90606.0,0.23177171]
[1763652450577,0.0041791,90617.0,90614.0,0.01103582]
[1763652450779,0.0041791,90617.0,90615.0,0.22071333]
[1763652451070,0.0004191,90617.0,90616.0,0.00100729]
[1763652451290,0.0520119,90617.0,90616.0,0.00100729]
[1763652451457,0.0520119,90617.0,90600.0,0.0004]
[1763652451458,0.22074811,90601.0,90600.0,0.0004]
[1763652451672,0.24090811,90601.0,90600.0,0.0004]
[1763652451872,0.26525811,90601.0,90600.0,0.0004]
[1763652452640,0.0164,90601.0,90600.0,0.0004]
[1763652452817,0.02351,90609.0,90600.0,0.01143752]
[1763652453015,0.23673811,90601.0,90600.0,0.0004]
[1763652453234,0.26400811,90601.0,90600.0,0.01138826]
[1763652453647,0.24149811,90601.0,90600.0,0.01138826]
[1763652453864,0.22550811,90601.0,90600.0,0.01138826]
[1763652454091,0.00476,90601.0,90600.0,0.01138826]
[1763652454296,0.04426,90601.0,90600.0,0.01138826]
[1763652454706,0.04526,90601.0,90600.0,0.01138826]
[1763652454906,0.04426,90601.0,90600.0,0.01138826]
[1763652455653,0.04426,90601.0,90590.0,0.0004]
[1763652455654,0.22077248,90591.0,90590.0,0.0004]
[1763652455861,0.24805248,90591.0,90590.0,0.0004]
[1763652456080,0.01129,90591.0,90590.0,0.0004]
[1763652456295,0.01505,90591.0,90590.0,0.0004]
[1763652457147,0.001,90601.0,90598.0,0.01103777]
[1763652457277,0.00376,90600.0,90597.0,0.01103789]
[1763652457481,0.00376,90600.0,90598.0,0.22075388]
[1763652458141,0.22075298,90599.0,90593.0,0.01103838]
[1763652458286,0.01599,90598.0,90595.0,0.01103813]
[1763652458511,0.01599,90596.0,90590.0,0.0004]
[1763652458861,0.02728,90591.0,90590.0,0.0004]
[1763652459197,0.05079,90591.0,90590.0,0.0004]
[1763652459823,0.02728,90591.0,90590.0,0.0004]
[1763652460204,0.01505,90591.0,90590.0,0.0004]
[1763652460454,0.03104,90591.0,90590.0,0.0004]
[1763652460672,0.03104,90591.0,90588.0,0.01103898]
[1763652460871,0.22077491,90590.0,90585.0,0.01103935]
[1763652461073,0.03104,90591.0,90581.0,0.23183437]
[1763652461232,0.01505,90591.0,90585.0,0.01103935]
[1763652461731,0.2207871,90585.0,90566.0,0.01104167]
[1763652461863,0.01599,90585.0,90578.0,0.0110402]
[1763652462066,0.01599,90585.0,90571.0,0.0392328]
[1763652462067,0.01599,90585.0,90571.0,0.01104106]
[1763652462274,0.2367771,90585.0,90584.0,0.00094855]
[1763652462504,0.01599,90585.0,90584.0,0.00094855]
[1763652462756,0.02351,90610.0,90584.0,0.00094855]
[1763652462961,0.22075578,90598.0,90589.0,0.01103886]
[1763652463162,0.01103716,90603.0,90594.0,0.22076379]
[1763652463281,0.22075432,90599.0,90595.0,0.22076231]
[1763652463484,0.0275932,90602.0,90599.0,0.01103764]
[1763652463485,0.22074761,90602.0,90599.0,0.01103764]
[1763652463692,0.02351,90605.0,90599.0,0.01103764]
[1763652463693,0.02759351,90601.0,90599.0,0.23178915]
[1763652463905,0.00376,90600.0,90597.0,0.01103789]
[1763652464328,0.00376,90600.0,90596.0,0.01103801]
[1763652464534,0.00376,90600.0,90597.0,0.01103789]
[1763652464964,0.00376,90600.0,90596.0,0.01103801]
[1763652465172,0.00376,90600.0,90595.0,0.01103813]
[1763652465597,0.00376,90600.0,90597.0,0.01103789]
[1763652466181,0.00376,90600.0,90596.0,0.01103801]
[1763652466398,0.00376,90600.0,90595.0,0.01103813]
[1763652466735,0.00376,90600.0,90594.0,0.22076481]
[1763652466736,0.01103813,90595.0,90581.0,0.01103984]
[1763652466935,0.01103813,90595.0,90575.0,0.01104057]
[1763652466936,0.01129,90591.0,90575.0,0.01104057]
[1763652467135,0.01129,90591.0,90586.0,0.01103923]
[1763652467359,0.01129,90591.0,90590.0,0.22077491]
[1763652467647,0.01129,90597.0,90588.0,0.01103898]
[1763652467796,0.01129,90597.0,90595.0,0.2207626]
[1763652468013,0.00376,90596.0,90595.0,0.2472543]
[1763652468227,0.00376,90596.0,90595.0,0.2207626]
[1763652468569,0.00376,90596.0,90595.0,0.22138501]
[1763652469570,0.00376,90596.0,90595.0,0.00062241]
[1763652469916,0.00376,90596.0,90595.0,0.22138514]
[1763652470117,0.00376,90596.0,90595.0,0.26891205]
[1763652470326,0.01145551,90607.0,90603.0,0.22074324]
[1763652470327,0.00041884,90607.0,90603.0,0.22074324]
[1763652470573,0.00041884,90607.0,90606.0,0.22073593]
[1763652471411,0.00041884,90607.0,90606.0,0.54373593]
[1763652471612,0.00141884,90607.0,90606.0,0.54373593]
[1763652471828,0.00241884,90607.0,90606.0,0.65290087]
[1763652472032,0.00141884,90607.0,90606.0,0.65290087]
[1763652472309,0.00041884,90607.0,90606.0,0.65290087]
[1763652472717,0.00041884,90607.0,90606.0,0.65390087]
[1763652472936,0.00041884,90607.0,90606.0,0.65490087]
[1763652474286,0.00041884,90607.0,90606.0,0.76641771]
[1763652474468,0.00376,90636.0,90630.0,0.01103387]
[1763652474659,0.00376,90636.0,90633.0,0.23170092]
[1763652474863,0.00376,90636.0,90634.0,0.22066673]
[1763652475066,0.00376,90636.0,90630.0,0.01115986]
[1763652475273,0.22067032,90633.0,90630.0,0.00012599]
[1763652475426,0.00376,90636.0,90630.0,0.00012599]
[1763652475633,0.22067337,90632.0,90630.0,0.00012599]
[1763652475851,0.00376,90636.0,90630.0,0.00012599]
[1763652475852,0.22066999,90634.0,90630.0,0.00012599]
[1763652476052,0.00376,90636.0,90630.0,0.23183523]
[1763652476373,0.23192946,90646.0,90637.0,0.01103302]
[1763652476603,0.00376,90640.0,90630.0,0.0411984]
[1763652476921,0.23666504,90631.0,90630.0,0.00012599]
[1763652477121,0.01599,90631.0,90630.0,0.00012599]
[1763652477327,0.22067454,90632.0,90630.0,0.00012599]
[1763652477854,0.22066439,90636.0,90633.0,0.0110335]
[1763652478058,0.24413952,90650.0,90635.0,0.01103326]
[1763652478258,0.01479241,90642.0,90632.0,0.01103363]
[1763652478525,0.00376,90642.0,90635.0,0.23169847]
[1763652478689,0.2206528,90641.0,90633.0,0.23170298]
[1763652478890,0.00376,90642.0,90640.0,0.22065239]
[1763652479090,0.00376,90642.0,90639.0,0.23168743]
[1763652479294,0.01129,90646.0,90640.0,0.01103265]
[1763652479515,0.01129,90646.0,90642.0,0.22064826]
[1763652479710,0.01505,90643.0,90642.0,0.22064826]
[1763652479909,0.01103046,90658.0,90640.0,0.23168537]
[1763652479910,0.01129,90651.0,90649.0,0.01103156]